bitfinex/quotes_SOLUSD_20241214
["timestamp","ask_amount","ask_price","bid_price","bid_amount"]
[1734197915304,20.0,219.73,219.63,6.3533]
[1734197918093,20.0,219.73,219.63,20.03384668]
[1734197920010,20.0,219.69,219.63,6.3533]
[1734197920318,20.0,219.69,219.62,1.6944]
[1734197920493,24.027864,219.68,219.62,1.6944]
[1734197920690,23.902374,219.64,219.58,6.4425]
[1734197923309,23.902374,219.64,219.57,1.6917]
[1734197924322,20.0,219.61,219.53,6.4425]
[1734197926819,23.902374,219.6,219.52,1.6917]
[1734197927196,20.0,219.57,219.52,1.6917]
[1734197927404,23.902374,219.56,219.52,1.6917]
[1734197927623,23.902374,219.56,219.47,1.8331]
[1734197927624,20.0,219.53,219.47,1.8331]
[1734197929022,0.12549,219.52,219.47,1.8331]
[1734197929209,23.902374,219.52,219.47,1.8331]
[1734197929800,23.902374,219.52,219.42,8.31916]
[1734197933525,20.0,219.49,219.42,1.83316]
[1734197937939,23.902374,219.48,219.42,6e-05]
[1734197942002,0.12549,219.48,219.42,6e-05]
[1734197942331,20.0,219.47,219.42,6e-05]
[1734197943239,0.12549,219.5,219.42,6e-05]
[1734197943474,0.12549,219.46,219.42,6e-05]
[1734197947632,20.12549,219.43,219.42,6e-05]
[1734197947928,44.027864,219.43,219.42,6e-05]
[1734197948664,44.027864,219.42,219.35,10.0]
[1734197949146,24.027864,219.36,219.35,8.7512]
[1734197949827,24.027864,219.36,219.35,8.5014]
[1734197950023,24.027864,219.36,219.35,8.4389]
[1734197950024,30.609364,219.36,219.35,8.4389]
[1734197952236,0.12549,219.36,219.35,8.4389]
[1734197952542,44.027864,219.36,219.35,8.4389]
[1734197953324,44.027864,219.36,219.35,6.31345886]
[1734197955451,43.902374,219.35,219.34,104.71694257]
[1734197955647,44.027864,219.35,219.34,104.71694257]
[1734197956636,20.0,219.35,219.34,104.71694257]
[1734197956846,20.0,219.35,219.34,104.21694257]
[1734197957429,20.12549,219.35,219.34,103.01694257]
[1734197957644,20.0,219.33,219.3,0.0456]
[1734197957854,24.027864,219.32,219.3,0.0456]
[1734197958350,24.027864,219.32,219.2,105.95346667]
[1734197958552,21.36,219.33,219.2,105.95346667]
[1734197958553,20.0,219.25,219.2,105.95346667]
[1734197960031,0.25098,219.24,219.2,104.16666667]
[1734197960228,43.902374,219.21,219.2,104.16666667]
[1734197960432,20.0,219.21,219.2,104.16666667]
[1734197967663,2.7444122,219.3,219.2,104.16666667]
[1734197968046,0.12549,219.29,219.2,104.16666667]
[1734197969050,20.0,219.26,219.2,104.16666667]
[1734197987193,0.12549,219.25,219.2,104.16666667]
[1734197987385,20.0,219.22,219.2,104.16666667]
[1734197996139,20.0,219.25,219.2,104.16666667]
[1734197996341,1.8691754,219.27,219.2,104.16666667]
[1734197996640,8.43973262,219.28,219.2,104.16666667]
[1734197997719,20.0,219.25,219.2,104.16666667]
[1734198005321,8.43973262,219.28,219.2,104.16666667]
[1734198005322,3.06160107,219.28,219.2,104.16666667]
[1734198005552,11.04354152,219.33,219.2,110.79446667]
[1734198005853,3.01802366,219.32,219.21,1.9358]
[1734198006042,5.18809768,219.32,219.21,1.9358]
[1734198006732,20.0,219.29,219.21,1.9358]
[1734198009965,29.05167581,219.34,219.25,8.78948603]
[1734198009966,3.82103566,219.34,219.25,8.78948603]
[1734198010250,51.80660111,219.4,219.26,6.6278]
[1734198010251,9.69506203,219.4,219.26,6.6278]
[1734198010458,13.78189523,219.4,219.26,6.6278]
[1734198011078,11.07533935,219.4,219.28,1.9358]
[1734198011279,4.0868332,219.4,219.28,1.9358]
[1734198012465,20.0,219.39,219.28,1.9358]
[1734198012671,20.0,219.38,219.28,1.9358]
[1734198012960,5.64950795,219.42,219.28,1.9358]
[1734198013159,0.12549,219.41,219.28,1.9358]
[1734198013365,0.12549,219.39,219.28,1.9358]
[1734198013582,0.12549,219.36,219.28,1.9358]
[1734198013903,0.12549,219.34,219.2,65.78206827]
[1734198014098,27.84889966,219.34,219.2,65.78206827]
[1734198014264,20.0,219.31,219.2,65.78206827]
[1734198016675,20.0,219.27,219.2,65.78206827]
[1734198021899,24.027864,219.26,219.2,65.78206827]
[1734198022068,20.0,219.23,219.2,65.78206827]
[1734198023269,23.902374,219.28,219.2,65.78206827]
[1734198023466,20.0,219.25,219.2,65.78206827]
[1734198025803,20.0,219.21,219.2,65.78206827]
[1734198028673,43.902374,219.21,219.2,8.51648366]
[1734198028877,43.902374,219.21,219.2,6.84756475]
[1734198029207,43.776884,219.21,219.2,6.84756475]
[1734198029409,20.0,219.21,219.2,6.84756475]
[1734198035032,3.58224045,219.29,219.2,6.84756475]
[1734198035331,5.45178614,219.29,219.2,6.84756475]
[1734198035904,1.86954569,219.29,219.2,6.84756475]
[1734198036124,0.12549,219.3,219.2,6.84756475]
[1734198036306,20.0,219.29,219.2,6.84756475]
[1734198036510,20.0,219.27,219.2,6.84756475]
[1734198037597,20.0,219.27,219.21,2.1025]
[1734198043142,20.0,219.23,219.2,6.84756475]
[1734198043350,23.776884,219.22,219.15,20.0]
[1734198043639,20.0,219.19,219.15,20.0]
[1734198044420,20.0,219.24,219.15,20.0]
[1734198045024,20.0,219.23,219.15,20.0]
[1734198049525,20.0,219.24,219.15,20.0]
[1734198050054,20.0,219.23,219.15,20.0]
[1734198052748,3.25405305,219.27,219.16,2.1199]
[1734198052940,20.0,219.29,219.17,6.1724]
[1734198054728,20.0,219.28,219.17,6.1724]
[1734198054952,1.80620111,219.3,219.17,6.1724]
[1734198055126,4.20984302,219.31,219.17,6.1724]
[1734198055339,5.94020773,219.32,219.17,6.1724]
[1734198055526,23.776884,219.31,219.17,6.1724]
[1734198056030,5.08320895,219.32,219.19,2.1199]
[1734198056243,23.776884,219.31,219.19,2.1199]
[1734198056750,20.0,219.28,219.19,2.1199]
[1734198058966,20.0,219.29,219.19,2.1199]
[1734198062295,20.0,219.25,219.19,2.1199]
[1734198062784,20.0,219.21,219.15,20.0]
[1734198063380,20.0,219.17,219.15,20.0]
[1734198065782,20.12549,219.22,219.15,20.0]
[1734198065984,20.0,219.22,219.15,20.0]
[1734198066395,3.25405305,219.23,219.15,20.0]
[1734198066976,20.0,219.22,219.15,20.0]
[1734198067706,3.25405305,219.23,219.15,20.0]
[1734198067910,3.25405305,219.23,219.15,22.2375]
[1734198068279,23.776884,219.22,219.15,22.2375]
[1734198068601,20.0,219.19,219.15,22.2375]
[1734198069399,23.25405305,219.23,219.15,22.2375]
[1734198071715,1.83487455,219.26,219.15,22.2375]
[1734198071933,5.37849615,219.27,219.15,22.2375]
[1734198072310,0.12549,219.26,219.15,22.2375]
[1734198073114,20.0,219.24,219.15,22.2375]
[1734198074128,20.0,219.2,219.15,22.2375]
[1734198074514,20.0,219.2,219.15,20.0]
[1734198078547,3.25405305,219.24,219.15,20.0]
[1734198078749,7.182481,219.27,219.15,20.0]
[1734198080025,20.0,219.24,219.15,20.0]
[1734198081750,20.0,219.24,219.15,19.5]
[1734198081948,20.12549,219.26,219.15,19.5]
[1734198082154,20.0,219.22,219.15,19.5]
[1734198083035,20.0,219.26,219.15,19.5]
[1734198083234,20.0,219.26,219.16,2.0485]
[1734198083734,5.69365323,219.29,219.16,2.0485]
[1734198083933,7.52304249,219.29,219.16,2.0485]
[1734198085049,20.0,219.25,219.16,2.0485]
[1734198085855,20.0,219.27,219.16,2.0485]
[1734198089450,20.0,219.27,219.16,10.83798603]
[1734198090475,20.0,219.27,219.16,2.0485]
[1734198092268,20.0,219.27,219.17,0.12549]
[1734198092798,20.0,219.29,219.17,0.12549]
[1734198093087,20.0,219.27,219.17,0.12549]
[1734198093583,13.44990615,219.36,219.2,8.78948603]
[1734198093788,4.06160064,219.36,219.21,8.78948603]
[1734198093990,6.73516867,219.36,219.21,8.78948603]
[1734198094878,20.0,219.33,219.21,8.78948603]
[1734198095181,20.0,219.32,219.21,8.78948603]
[1734198096191,20.0,219.33,219.23,10.83798603]
[1734198096490,20.0,219.33,219.24,6.6021]
[1734198104497,20.0,219.29,219.23,2.0485]
[1734198105607,3.06204708,219.32,219.23,2.0485]
[1734198106578,1.81617562,219.4,219.27,8.78948603]
[1734198106884,4.06160064,219.39,219.27,8.78948603]
[1734198107613,4.06160064,219.39,219.28,8.78948603]
[1734198108396,4.06160064,219.39,219.29,8.78948603]
[1734198108709,4.06160064,219.44,219.29,9.47332067]
[1734198108929,4.06160064,219.44,219.31,6.4451]
[1734198109422,4.06160064,219.44,219.31,15.23458603]
[1734198109640,20.0,219.42,219.31,15.23458603]
[1734198109804,20.0,219.42,219.31,6.4451]
[1734198110600,20.0,219.42,219.31,15.23458603]
[1734198111130,4.06160064,219.44,219.31,15.23458603]
[1734198111823,4.06160064,219.44,219.32,8.78948603]
[1734198112027,4.06160064,219.44,219.31,15.23458603]
[1734198113115,20.0,219.43,219.31,15.23458603]
[1734198114329,20.0,219.43,219.31,6.4451]
[1734198115308,20.0,219.43,219.31,15.23458603]
[1734198115810,20.0,219.43,219.33,2.0478]
[1734198116218,4.06160064,219.44,219.33,2.0478]
[1734198116434,4.06160064,219.44,219.34,9.47311151]
[1734198116634,4.06160064,219.44,219.35,32.69186003]
[1734198116928,20.0,219.49,219.37,2.136]
[1734198117107,4.06160064,219.49,219.37,2.136]
[1734198118341,20.0,219.48,219.37,2.136]
[1734198118510,2.45086521,219.48,219.37,2.136]
[1734198118710,22.45086521,219.48,219.37,2.136]
[1734198119711,22.45086521,219.48,219.38,6.0361]
[1734198120331,2.45086521,219.48,219.38,14.82558603]
[1734198121127,2.45086521,219.48,219.39,23.902374]
[1734198121333,2.45086521,219.48,219.41,2.136]
[1734198133358,2.45086521,219.48,219.3,8.5969]
[1734198133359,20.0,219.45,219.3,8.5969]
[1734198133741,20.0,219.45,219.31,0.12549]
[1734198134265,20.0,219.41,219.3,8.5969]
[1734198134763,23.902374,219.48,219.33,2.1007]
[1734198135086,20.0,219.45,219.34,8.78948603]
[1734198135255,20.0,219.45,219.35,8.78948603]
[1734198135451,23.902374,219.49,219.36,8.5969]
[1734198135752,20.0,219.46,219.36,17.38638603]
[1734198136152,20.0,219.5,219.37,8.78948603]
[1734198137443,20.0,219.5,219.36,17.38638603]
[1734198139441,1.82738883,219.54,219.37,32.81735003]
[1734198139647,20.0,219.53,219.37,32.81735003]
[1734198139851,20.0,219.53,219.38,8.78948603]
[1734198140365,4.06165199,219.52,219.38,8.78948603]
[1734198141351,24.027864,219.51,219.36,17.38638603]
[1734198141553,20.0,219.48,219.36,8.5969]
[1734198141856,24.06165199,219.48,219.36,8.5969]
[1734198142047,2.45077278,219.47,219.36,8.5969]
[1734198142247,20.0,219.43,219.36,8.5969]
[1734198143394,20.0,219.43,219.36,2.1007]
[1734198143712,24.027864,219.42,219.36,2.1007]
[1734198143967,20.0,219.39,219.31,2.1383]
[1734198145479,3.25409413,219.41,219.31,2.1383]
[1734198146394,20.0,219.37,219.31,2.1383]
[1734198148986,23.776884,219.36,219.31,2.1383]
[1734198149211,20.0,219.33,219.31,2.1383]
[1734198152600,23.776884,219.36,219.31,2.1383]
[1734198152917,3.25409413,219.41,219.31,2.1383]
[1734198154015,23.776884,219.4,219.31,2.1383]
[1734198154217,20.0,219.37,219.31,2.1383]
[1734198154419,20.0,219.4,219.31,2.1383]
[1734198154727,3.25409413,219.41,219.31,10.92778603]
[1734198155123,3.25409413,219.41,219.32,8.78948603]
[1734198155603,3.25409413,219.41,219.31,10.92778603]
[1734198156429,3.25409413,219.41,219.32,9.47320442]
[1734198156603,20.0,219.43,219.32,9.47320442]
[1734198157009,20.0,219.45,219.32,9.47320442]
[1734198157217,20.0,219.44,219.33,8.78948603]
[1734198157418,20.0,219.44,219.34,6.4397]
[1734198158023,23.776884,219.45,219.34,6.4397]
[1734198158229,20.0,219.42,219.34,6.4397]
[1734198158924,23.776884,219.41,219.34,6.4397]
[1734198159135,20.0,219.38,219.31,2.1383]
[1734198164506,20.0,219.34,219.31,2.1383]
[1734198165033,20.0,219.34,219.25,1.9945]
[1734198165233,20.0,219.3,219.25,1.9945]
[1734198165814,20.0,219.26,219.25,1.9945]
[1734198167549,20.0,219.26,219.2,1.9945]
[1734198169338,23.776884,219.25,219.2,1.9945]
[1734198169842,0.12549,219.3,219.2,1.9945]
[1734198170035,20.0,219.27,219.2,1.9945]
[1734198170336,23.776884,219.26,219.2,1.9945]
[1734198170844,20.0,219.23,219.2,1.9945]
[1734198172135,23.902374,219.32,219.2,10.78398603]
[1734198172727,23.776884,219.32,219.2,10.78398603]
[1734198173231,3.25364812,219.33,219.2,10.78398603]
[1734198173429,3.25364812,219.33,219.2,1.9945]
[1734198173637,3.25364812,219.33,219.2,10.78398603]
[1734198174521,20.0,219.29,219.2,10.78398603]
[1734198178748,20.0,219.29,219.2,1.9945]
[1734198179966,23.776884,219.28,219.2,1.9945]
[1734198180751,20.0,219.25,219.2,1.9945]
[1734198183845,23.776884,219.24,219.2,1.9945]
[1734198184048,20.0,219.21,219.15,19.5]
[1734198184427,20.0,219.17,219.15,19.5]
[1734198192581,4.06165199,219.26,219.15,19.5]
[1734198192781,20.0,219.25,219.15,19.5]
[1734198193752,20.0,219.21,219.15,19.5]
[1734198194960,20.0,219.17,219.15,19.5]
[1734198195155,23.776884,219.16,219.15,19.5]
[1734198203990,23.75592892,219.16,219.12,0.5502759]
[1734198204288,20.0,219.13,219.12,0.5502759]
[1734198207191,43.776884,219.13,219.12,0.5502759]
[1734198210092,20.0,219.13,219.12,0.5502759]
[1734198210501,43.776884,219.13,219.12,0.5502759]
[1734198213274,43.902374,219.13,219.12,0.5502759]
[1734198213473,44.027864,219.13,219.12,0.5502759]
[1734198216094,24.027864,219.12,219.05,104.16666667]
[1734198216296,23.776884,219.08,219.05,104.16666667]
[1734198216601,43.776884,219.06,219.05,103.64846667]
[1734198220587,9.89403168,219.15,219.05,103.64846667]
[1734198221382,11.72574224,219.15,219.05,103.64846667]
[1734198221580,0.12549,219.14,219.05,103.64846667]
[1734198221791,0.12549,219.11,219.05,103.64846667]
[1734198221998,44.027864,219.11,219.05,103.64846667]
[1734198222189,15.78739423,219.15,219.05,103.64846667]
[1734198223009,0.12549,219.14,219.05,103.64846667]
[1734198223819,0.12549,219.13,219.05,103.64846667]
[1734198224180,0.12549,219.1,219.05,103.64846667]
[1734198224411,20.0,219.07,219.05,103.64846667]
[1734198224606,23.776884,219.06,219.05,103.64846667]
[1734198242431,23.902374,219.14,219.05,103.64846667]
[1734198243131,5.89336255,219.15,219.05,103.64846667]
[1734198243731,20.0,219.12,219.05,103.64846667]
[1734198244352,20.0,219.08,219.05,103.64846667]
[1734198252349,20.0,219.08,219.06,2.107]
[1734198252931,23.776884,219.14,219.06,2.107]
[1734198253149,20.0,219.11,219.06,2.79150912]
[1734198253848,4.06165199,219.15,219.06,2.107]
[1734198254020,20.0,219.17,219.06,2.107]
[1734198254650,23.776884,219.15,219.06,2.107]
[1734198254849,20.0,219.12,219.06,2.7915038]
[1734198264754,4.06165199,219.19,219.07,0.12549]
[1734198264950,24.06165199,219.19,219.08,0.68439848]
[1734198265258,20.0,219.17,219.08,0.68439848]
[1734198265446,20.0,219.17,219.06,9.16803426]
[1734198265753,0.12549,219.16,219.06,2.107]
[1734198265959,23.902374,219.15,219.06,2.107]
[1734198266139,23.776884,219.11,219.06,2.107]
[1734198268233,20.0,219.08,219.05,103.64846667]
[1734198268431,23.776884,219.07,219.05,103.64846667]
[1734198270462,20.0,219.08,219.05,103.64846667]
[1734198276768,23.902374,219.07,219.05,103.64846667]
[1734198279369,20.0,219.02,218.91,104.16666667]
[1734198279556,20.0,218.98,218.91,104.16666667]
[1734198280247,3.25454014,219.01,218.91,104.16666667]
[1734198282066,23.25454014,219.01,218.91,104.16666667]
[1734198284575,3.25454014,219.01,218.93,1.9824]
[1734198284877,20.0,219.03,218.93,1.9824]
[1734198285370,5.18345267,219.08,218.95,6.4565]
[1734198285581,6.97439739,219.08,218.95,6.4565]
[1734198286461,13.62836932,219.08,218.95,6.4565]
[1734198286651,20.0,219.05,218.95,6.4565]
[1734198288770,20.0,219.03,218.95,6.4565]
[1734198289561,20.0,219.03,218.93,1.9824]
[1734198295172,25.08928993,219.03,218.93,1.9824]
[1734198296173,5.08928993,219.03,218.93,1.9824]
[1734198297981,5.08928993,219.03,218.95,6.2086]
[1734198298355,13.62836932,219.08,218.95,6.2086]
[1734198299082,20.0,219.05,218.95,6.2086]
[1734198300079,20.0,219.05,218.96,0.81025294]
[1734198301058,20.0,219.05,218.96,0.68476294]
[1734198301257,20.0,219.05,218.95,6.2086]
[1734198303073,20.0,219.05,218.96,0.12549]
[1734198304172,20.0,219.05,218.95,6.2086]
[1734198307282,5.08928993,219.05,218.95,6.2086]
[1734198307579,20.0,219.02,218.95,6.2086]
[1734198309783,5.08928993,219.05,218.95,6.2086]
[1734198311764,5.08928993,219.05,218.96,0.81028233]
[1734198311978,5.08928993,219.05,218.98,0.12549]
[1734198312185,6.4359,219.16,219.01,8.91497603]
[1734198312479,1.82897367,219.16,219.02,17.86606353]
[1734198312693,2.75008097,219.16,219.02,17.86606353]
[1734198313265,2.75008097,219.16,219.02,9.0765775]
[1734198313617,4.89666033,219.17,219.05,0.12549]
[1734198313891,4.89666033,219.17,219.05,0.80994128]
[1734198315074,20.0,219.15,219.05,0.80994128]
[1734198315280,4.89666033,219.17,219.05,0.80994128]
[1734198315480,4.89666033,219.17,219.05,9.59942731]
[1734198316082,4.89666033,219.17,219.08,20.0]
[1734198316283,2.8055002,219.21,219.07,0.68445519]
[1734198316481,12.4052682,219.21,219.07,0.68445519]
[1734198317391,20.0,219.18,219.07,20.68445519]
[1734198317595,20.0,219.17,219.07,0.68445519]
[1734198317893,20.0,219.17,219.08,0.12549]
[1734198318480,20.0,219.2,219.07,0.68445519]
[1734198318883,20.0,219.19,219.07,0.68445519]
[1734198319779,24.027864,219.18,219.06,2.1834]
[1734198319972,20.0,219.15,219.06,2.1834]
[1734198320482,4.87788255,219.18,219.06,2.1834]
[1734198321093,20.0,219.14,219.06,2.1834]
[1734198324484,20.0,219.1,219.06,2.1834]
[1734198324680,23.776884,219.09,219.01,2.3063]
[1734198324880,20.0,219.06,219.01,2.3063]
[1734198325182,20.0,219.06,218.97,6.4786]
[1734198325494,24.87788255,219.06,218.97,6.4786]
[1734198328099,24.87788255,219.06,218.96,2.3063]
[1734198328295,4.87788255,219.05,218.96,2.3063]
[1734198328490,20.0,219.04,218.96,2.3063]
[1734198330903,20.0,219.0,218.96,2.3063]
[1734198331620,24.87788255,219.04,218.96,2.3063]
[1734198334180,4.87788255,219.04,218.96,2.99118118]
[1734198334691,20.0,219.06,218.96,2.99118118]
[1734198335502,20.0,219.06,218.96,2.3063]
[1734198335689,1.06655771,219.05,218.96,2.3063]
[1734198335896,4.87788255,219.05,218.96,2.3063]
[1734198336505,23.902374,219.04,218.96,2.3063]
[1734198336810,20.0,219.01,218.92,9.2004]
[1734198337223,20.0,218.97,218.92,9.2004]
[1734198337599,20.0,219.01,218.92,9.2004]
[1734198337916,23.902374,219.0,218.92,9.2004]
[1734198338113,24.87788255,219.01,218.92,9.2004]
[1734198341184,4.87788255,219.01,218.93,8.78948603]
[1734198341377,1.87858185,219.06,218.94,0.68485174]
[1734198341581,24.87788255,219.06,218.94,9.47433777]
[1734198342019,24.87788255,219.06,218.95,11.16548603]
[1734198342194,24.87788255,219.06,218.96,0.6848089]
[1734198342595,4.87788255,219.06,218.98,8.78948603]
[1734198342914,3.49661011,219.11,218.98,9.47420995]
[1734198343126,4.87788255,219.12,218.99,17.19268603]
[1734198343297,4.87788255,219.12,219.0,9.47412993]
[1734198343623,4.87788255,219.12,219.0,0.6846439]
[1734198343819,4.87788255,219.12,219.0,0.12549]
[1734198344116,0.12549,219.11,218.99,8.4032]
[1734198344289,5.00337255,219.11,218.99,8.4032]
[1734198344618,20.0,219.07,218.99,8.4032]
[1734198344987,20.0,219.07,218.99,9.08790664]
[1734198348004,20.0,219.07,219.0,0.12549]
[1734198348221,4.87788255,219.11,218.99,9.08790664]
[1734198348426,4.87788255,219.11,218.99,8.4032]
[1734198349535,4.87788255,219.11,219.0,0.81019332]
[1734198351537,4.87788255,219.11,219.03,2.3382]
[1734198357330,4.87788255,219.11,219.03,3.02273305]
[1734198357533,4.87788255,219.16,219.03,3.02273305]
[1734198357745,20.0,219.14,219.03,3.02273305]
[1734198358056,4.87788255,219.16,219.06,0.25098]
[1734198358224,4.87788255,219.16,219.06,14.69043336]
[1734198358834,4.87788255,219.16,219.06,0.93539145]
[1734198359527,4.87788255,219.16,219.06,0.25098]
[1734198359948,4.87788255,219.16,219.07,2.1836]
[1734198360250,0.12549,219.12,219.0,2.1836]
[1734198360448,5.00337255,219.12,219.0,2.1836]
[1734198360669,20.0,219.09,219.0,2.1836]
[1734198361159,23.776884,219.08,219.0,2.1836]
[1734198366953,4.87788255,219.11,218.94,2.1836]
[1734198366954,20.0,219.01,218.94,2.1836]
[1734198367164,23.776884,219.0,218.94,2.1836]
[1734198367546,20.0,219.04,218.94,2.1836]
[1734198367739,20.0,219.0,218.94,2.1836]
[1734198371741,20.0,218.96,218.92,3.0]
[1734198371950,20.0,218.93,218.92,3.0]
[1734198372145,28.65476655,218.95,218.92,3.0]
[1734198372358,20.0,218.93,218.92,3.0]
[1734198376863,4.87788255,218.95,218.92,3.0]
[1734198378454,23.776884,218.94,218.92,3.0]
[1734198379747,4.87788255,218.95,218.92,3.0]
[1734198380546,44.027864,218.93,218.92,3.0]
[1734198380740,20.0,218.93,218.92,3.0]
[1734198380983,24.87788255,218.93,218.92,3.0]
[1734198381355,23.902374,218.92,218.91,20.58154589]
[1734198381577,0.12549,218.91,218.9,0.5502759]
[1734198381765,28.78025655,218.91,218.9,0.5502759]
[1734198382183,28.90574655,218.91,218.9,0.5502759]
[1734198382382,23.776884,218.86,218.81,2.0]
[1734198382547,20.0,218.87,218.81,2.0]
[1734198382961,20.0,218.88,218.81,2.0]
[1734198385048,3.81132484,218.9,218.82,0.6853077]
[1734198386076,3.81132484,218.9,218.83,0.12549]
[1734198386249,4.87788255,218.97,218.85,8.3571]
[1734198386458,4.87788255,218.97,218.86,0.68511488]
[1734198387062,4.87788255,218.97,218.85,8.3571]
[1734198387754,4.87788255,218.97,218.85,9.04224642]
[1734198388565,23.776884,218.96,218.85,9.04224642]
[1734198389761,4.87788255,218.97,218.85,9.04224642]
[1734198389965,4.87788255,218.96,218.85,9.04224642]
[1734198391483,4.87788255,218.96,218.86,13.88053191]
[1734198391682,4.87788255,218.96,218.88,0.12549]
[1734198391887,4.87788255,218.96,218.89,0.6850037]
[1734198392193,20.0,219.0,218.9,2.2515]
[1734198392383,4.87788255,219.02,218.91,0.81046105]
[1734198393080,4.87788255,219.02,218.92,6.1056]
[1734198395671,4.87788255,219.02,218.93,2.37699]
[1734198395885,4.87788255,219.02,218.93,3.06188821]
[1734198396272,4.87788255,219.08,218.94,0.12549]
[1734198397212,4.87788255,219.08,218.96,0.12549]
[1734198400501,4.87788255,219.08,218.98,0.12549]
[1734198401470,4.87788255,219.08,219.01,6.5398]
[1734198403486,23.776884,219.07,218.97,2.3925]
[1734198403801,28.65476655,219.07,218.97,2.3925]
[1734198404704,4.87788255,219.06,218.97,2.3925]
[1734198406202,20.0,219.04,218.97,2.3925]
[1734198406394,20.0,219.02,218.97,2.3925]
[1734198406804,24.87788255,219.02,218.97,2.3925]
[1734198407007,4.87788255,219.02,218.97,2.3925]
[1734198408004,4.87788255,219.02,218.91,6.5398]
[1734198408005,23.776884,219.01,218.92,2.3925]
[1734198408297,28.65476655,219.01,218.92,2.3925]
[1734198408609,20.0,218.98,218.92,2.3925]
[1734198410895,20.0,218.98,218.87,2.3925]
[1734198410896,28.65476655,218.97,218.87,2.3925]
[1734198411101,23.776884,218.93,218.87,2.3925]
[1734198411409,20.0,218.9,218.87,2.3925]
[1734198413910,20.0,218.9,218.82,2.3925]
[1734198414118,23.776884,218.89,218.82,2.3925]
[1734198415620,4.87788255,218.92,218.82,2.3925]
[1734198416125,20.0,218.88,218.82,2.3925]
[1734198417193,4.87788255,218.92,218.82,2.3925]
[1734198420402,4.87788255,218.92,218.83,0.81073583]
[1734198420606,2.8001826,219.04,218.87,0.12549]
[1734198420923,4.87788255,218.99,218.87,14.56558099]
[1734198421120,4.87788255,218.99,218.87,0.81053908]
[1734198422535,4.87788255,218.99,218.91,0.12549]
[1734198422827,4.79463791,219.07,218.91,0.12549]
[1734198422828,4.87788255,219.05,218.91,0.81040627]
[1734198423919,23.776884,219.04,218.91,0.81040627]
[1734198424816,23.776884,219.04,218.91,14.56544818]
[1734198425006,23.776884,219.04,218.91,0.81040627]
[1734198425300,20.0,218.97,218.89,2.4688]
[1734198425507,23.776884,218.96,218.89,2.4688]
[1734198427848,20.0,219.0,218.89,2.4688]
[1734198428031,4.87788255,218.99,218.89,2.4688]
[1734198429045,0.12549,218.98,218.84,2.3171]
[1734198429231,20.0,218.92,218.84,2.3171]
[1734198429426,23.902374,218.91,218.84,2.3171]
[1734198429641,23.776884,218.91,218.84,2.3171]
[1734198430830,4.87788255,218.97,218.84,2.3171]
[1734198430831,20.0,218.95,218.84,2.3171]
[1734198431136,20.0,218.91,218.84,2.3171]
[1734198431826,23.776884,218.9,218.84,2.3171]
[1734198432029,20.0,218.87,218.81,2.0]
[1734198432646,4.87788255,218.89,218.82,0.12549]
[1734198432836,4.87788255,218.89,218.81,2.0]
[1734198432837,23.776884,218.88,218.81,2.0]
[1734198433947,20.0,218.85,218.81,2.0]
[1734198434759,4.87788255,218.89,218.81,2.0]
[1734198434760,24.87788255,218.89,218.81,2.0]
[1734198434940,23.902374,218.88,218.81,2.0]
[1734198435253,20.0,218.85,218.81,2.0]
[1734198436825,18.275517,218.92,218.82,0.12549]
[1734198437031,4.87788255,218.93,218.82,6.41909]
[1734198438139,24.87788255,218.93,218.82,6.41909]
[1734198439365,20.0,218.89,218.82,6.41909]
[1734198442183,23.776884,218.88,218.81,2.0]
[1734198443083,20.0,218.85,218.81,2.0]
[1734198444369,23.776884,218.84,218.81,2.0]